[Event "*** Titled Tuesday Blitz"]
[Site "Chess.com"]
[Date "2020.04.28"]
[Round "7"]
[White "WoolworthsManly"]
[Black "Fh2411"]
[Result "1-0"]
[WhiteElo "2660"]
[BlackElo "2484"]
[TimeControl "180+1"]
[EndTime "11:16:56 PDT"]
[Termination "WoolworthsManly won by resignation"]

1. e4 {[%clk 0:03:00.9]} 1... c5 {[%clk 0:02:59.7]} 2. Nf3 {[%clk 0:03:00.7]}
2... e6 {[%clk 0:03:00.2]} 3. d4 {[%clk 0:03:00]} 3... cxd4 {[%clk 0:03:01.1]}
4. Nxd4 {[%clk 0:03:00.8]} 4... a6 {[%clk 0:03:01.5]} 5. c4 {[%clk 0:02:58.8]}
5... Nf6 {[%clk 0:03:01.1]} 6. Nc3 {[%clk 0:02:58.9]} 6... Bb4 {[%clk
0:03:01.4]} 7. Qc2 {[%clk 0:02:58.3]} 7... Qc7 {[%clk 0:02:56.9]} 8. a3 {[%clk
0:02:56.6]} 8... Bxc3+ {[%clk 0:02:56.6]} 9. Qxc3 {[%clk 0:02:57.2]} 9... Nxe4
{[%clk 0:02:48.6]} 10. Nb5 {[%clk 0:02:57.2]} 10... axb5 {[%clk 0:02:40.7]} 11.
Qxg7 {[%clk 0:02:55.8]} 11... Rf8 {[%clk 0:02:41.1]} 12. Bh6 {[%clk 0:02:55]}
12... Qc5 {[%clk 0:02:37.7]} 13. f3 {[%clk 0:02:46.1]} 13... Nf6 {[%clk
0:01:48.4]} 14. Qxf6 {[%clk 0:02:42.8]} 14... Rg8 {[%clk 0:01:48.5]} 15. cxb5
{[%clk 0:02:26.4]} 15... d6 {[%clk 0:01:42]} 16. Rc1 {[%clk 0:02:23]} 16... Nd7
{[%clk 0:01:33.6]} 17. Qf4 {[%clk 0:01:52.7]} 17... Qe5+ {[%clk 0:01:29.7]} 18.
Qxe5 {[%clk 0:01:46]} 18... Nxe5 {[%clk 0:01:30.6]} 19. Rc7 {[%clk 0:01:22.6]}
19... b6 {[%clk 0:01:10.8]} 20. Be3 {[%clk 0:01:18.1]} 20... Nd7 {[%clk
0:01:05.6]} 21. Kf2 {[%clk 0:01:14]} 21... Kd8 {[%clk 0:01:04.2]} 22. Rc6 {[%clk
0:01:11]} 22... d5 {[%clk 0:00:43.8]} 23. Bxb6+ {[%clk 0:01:09.9]} 23... Nxb6
{[%clk 0:00:43.8]} 24. Rxb6 {[%clk 0:01:10.8]} 24... Bd7 {[%clk 0:00:37.4]} 25.
Bd3 {[%clk 0:01:05.9]} 25... h5 {[%clk 0:00:37.3]} 26. Rc1 {[%clk 0:01:03.2]}
26... h4 {[%clk 0:00:36.4]} 27. Rb7 {[%clk 0:01:01.4]} 27... Rc8 {[%clk
0:00:35]} 28. Rxc8+ {[%clk 0:00:58.2]} 28... Kxc8 {[%clk 0:00:35.9]} 29. Ra7
{[%clk 0:00:58.4]} 29... Rg5 {[%clk 0:00:35.4]} 30. b6 {[%clk 0:00:57.3]} 30...
Bc6 {[%clk 0:00:34.6]} 31. Rc7+ {[%clk 0:00:56.5]} 1-0

[Event "*** Titled Tuesday Blitz"]
[Site "Chess.com"]
[Date "2020.04.28"]
[Round "7"]
[White "pichonazo"]
[Black "Misticpikachu"]
[Result "1-0"]
[WhiteElo "2451"]
[BlackElo "2296"]
[TimeControl "180+1"]
[EndTime "11:17:00 PDT"]
[Termination "pichonazo won on time"]

1. e4 {[%clk 0:03:00.9]} 1... c5 {[%clk 0:02:59.1]} 2. c3 {[%clk 0:03:00.3]}
2... e6 {[%clk 0:02:58.7]} 3. d4 {[%clk 0:03:00.1]} 3... cxd4 {[%clk 0:02:59.6]}
4. cxd4 {[%clk 0:02:58.9]} 4... d5 {[%clk 0:03:00]} 5. e5 {[%clk 0:02:59.4]}
5... Nc6 {[%clk 0:03:00]} 6. Nc3 {[%clk 0:02:59.7]} 6... Nge7 {[%clk 0:03:00.6]}
7. Nf3 {[%clk 0:02:58.7]} 7... Nf5 {[%clk 0:03:01]} 8. Be3 {[%clk 0:02:50.6]}
8... Be7 {[%clk 0:02:59.8]} 9. Bd3 {[%clk 0:02:50.4]} 9... O-O {[%clk
0:02:59.3]} 10. O-O {[%clk 0:02:50.3]} 10... a6 {[%clk 0:02:26.6]} 11. Rc1
{[%clk 0:02:45.9]} 11... Nxe3 {[%clk 0:02:11.2]} 12. fxe3 {[%clk 0:02:45]} 12...
Bd7 {[%clk 0:01:57.6]} 13. a3 {[%clk 0:02:34.2]} 13... Rc8 {[%clk 0:01:54.9]}
14. Qe2 {[%clk 0:02:31.4]} 14... f5 {[%clk 0:01:47.7]} 15. exf6 {[%clk
0:02:28.9]} 15... Bxf6 {[%clk 0:01:46.7]} 16. Bb1 {[%clk 0:02:27]} 16... b5
{[%clk 0:01:42.2]} 17. Qd3 {[%clk 0:02:26.4]} 17... g6 {[%clk 0:01:39.1]} 18.
Ne2 {[%clk 0:02:26]} 18... Qb6 {[%clk 0:01:24.1]} 19. Nf4 {[%clk 0:02:23.1]}
19... Bg7 {[%clk 0:01:05.9]} 20. Nxg6 {[%clk 0:02:19.7]} 20... hxg6 {[%clk
0:01:06.8]} 21. Qxg6 {[%clk 0:02:19.6]} 21... Rf6 {[%clk 0:01:04.1]} 22. Qh7+
{[%clk 0:02:17.9]} 22... Kf8 {[%clk 0:01:04]} 23. Ng5 {[%clk 0:02:16.4]} 23...
Nd8 {[%clk 0:00:44.6]} 24. Rxf6+ {[%clk 0:02:11]} 24... Bxf6 {[%clk 0:00:45.5]}
25. Rf1 {[%clk 0:02:10.3]} 25... e5 {[%clk 0:00:31.3]} 26. Qg6 {[%clk
0:02:04.9]} 26... Ke7 {[%clk 0:00:25.3]} 27. Nh7 {[%clk 0:01:51.4]} 27... Be8
{[%clk 0:00:15.5]} 28. Qxf6+ {[%clk 0:01:44.4]} 28... Qxf6 {[%clk 0:00:15.9]}
29. Nxf6 {[%clk 0:01:45]} 29... exd4 {[%clk 0:00:15.7]} 30. exd4 {[%clk
0:01:42.6]} 30... Ne6 {[%clk 0:00:15.9]} 31. Nxd5+ {[%clk 0:01:42.4]} 31... Kd6
{[%clk 0:00:15.3]} 32. Nf6 {[%clk 0:01:41.2]} 32... Nxd4 {[%clk 0:00:13.3]} 33.
Rd1 {[%clk 0:01:40.5]} 33... Ke5 {[%clk 0:00:09.3]} 34. Nxe8 {[%clk 0:01:40.4]}
34... Ne2+ {[%clk 0:00:02.4]} 35. Kf2 {[%clk 0:01:39]} 1-0

[Event "*** Titled Tuesday Blitz"]
[Site "Chess.com"]
[Date "2020.04.28"]
[Round "7"]
[White "mjray79"]
[Black "Spring199"]
[Result "0-1"]
[WhiteElo "2250"]
[BlackElo "2390"]
[TimeControl "180+1"]
[EndTime "11:17:01 PDT"]
[Termination "Spring199 won by checkmate"]

1. d4 {[%clk 0:03:00.9]} 1... Nf6 {[%clk 0:02:58.9]} 2. c4 {[%clk 0:03:01.4]}
2... e6 {[%clk 0:02:56.6]} 3. g3 {[%clk 0:03:00.2]} 3... Bb4+ {[%clk 0:02:55.3]}
4. Bd2 {[%clk 0:02:59.6]} 4... Qe7 {[%clk 0:02:53.9]} 5. Nf3 {[%clk 0:02:56.8]}
5... O-O {[%clk 0:02:51.8]} 6. Bg2 {[%clk 0:02:55.2]} 6... Bxd2+ {[%clk
0:02:50.1]} 7. Qxd2 {[%clk 0:02:53.5]} 7... d6 {[%clk 0:02:49.9]} 8. O-O {[%clk
0:02:53.1]} 8... e5 {[%clk 0:02:47.6]} 9. d5 {[%clk 0:02:51.6]} 9... Nbd7 {[%clk
0:02:45.2]} 10. Nc3 {[%clk 0:02:51.3]} 10... a5 {[%clk 0:02:43.4]} 11. e4 {[%clk
0:02:47.5]} 11... Nc5 {[%clk 0:02:42]} 12. Qc2 {[%clk 0:02:45.1]} 12... Bg4
{[%clk 0:02:35.5]} 13. Nd2 {[%clk 0:02:41.1]} 13... Nfd7 {[%clk 0:02:24.4]} 14.
f4 {[%clk 0:02:40.5]} 14... f5 {[%clk 0:02:23.1]} 15. fxe5 {[%clk 0:02:37.1]}
15... Nxe5 {[%clk 0:02:21.6]} 16. exf5 {[%clk 0:02:34.8]} 16... Qg5 {[%clk
0:02:13.1]} 17. Kh1 {[%clk 0:02:20.6]} 17... Bxf5 {[%clk 0:02:09.1]} 18. Nde4
{[%clk 0:02:19.4]} 18... Qg6 {[%clk 0:02:07.1]} 19. Qe2 {[%clk 0:02:15.6]} 19...
Nxe4 {[%clk 0:01:59.5]} 20. Nxe4 {[%clk 0:02:16.5]} 20... Rae8 {[%clk 0:01:58]}
21. Rae1 {[%clk 0:02:02.6]} 21... Ng4 {[%clk 0:01:53.5]} 22. h3 {[%clk
0:01:43.9]} 22... Bxe4 {[%clk 0:01:51.6]} 23. hxg4 {[%clk 0:00:55.7]} 23...
Bxg2+ {[%clk 0:01:40.8]} 24. Qxg2 {[%clk 0:00:56.6]} 24... Qxg4 {[%clk
0:01:36.6]} 25. Rxf8+ {[%clk 0:00:46.6]} 25... Rxf8 {[%clk 0:01:35.4]} 26. Re7
{[%clk 0:00:45]} 26... Qd1+ {[%clk 0:01:23.3]} 27. Kh2 {[%clk 0:00:43.1]} 27...
Qh5+ {[%clk 0:01:22.2]} 28. Kg1 {[%clk 0:00:40.6]} 28... Qg5 {[%clk 0:01:20.7]}
29. Rxc7 {[%clk 0:00:36.9]} 29... Qe3+ {[%clk 0:01:16.6]} 30. Kh1 {[%clk
0:00:36.6]} 30... Qe1+ {[%clk 0:01:14.1]} 31. Qg1 {[%clk 0:00:35.9]} 31... Rf1
{[%clk 0:01:13.1]} 32. Rc8+ {[%clk 0:00:32.7]} 32... Kf7 {[%clk 0:01:12.2]} 33.
Rc7+ {[%clk 0:00:33.6]} 33... Kg6 {[%clk 0:01:11.7]} 34. Rc8 {[%clk 0:00:34.5]}
34... Rxg1+ {[%clk 0:01:10.8]} 35. Kh2 {[%clk 0:00:33.7]} 35... Qxg3# {[%clk
0:01:10.9]} 0-1

[Event "*** Titled Tuesday Blitz"]
[Site "Chess.com"]
[Date "2020.04.28"]
[Round "7"]
[White "keepitcool9499"]
[Black "VqquyenCFT"]
[Result "0-1"]
[WhiteElo "2447"]
[BlackElo "2238"]
[TimeControl "180+1"]
[EndTime "11:17:02 PDT"]
[Termination "VqquyenCFT won by resignation"]

1. d4 {[%clk 0:03:00.9]} 1... Nf6 {[%clk 0:02:59.6]} 2. c4 {[%clk 0:02:57.7]}
2... g6 {[%clk 0:02:59.7]} 3. Nc3 {[%clk 0:02:56.6]} 3... d5 {[%clk 0:03:00.1]}
4. Nf3 {[%clk 0:02:54.8]} 4... Bg7 {[%clk 0:02:59.7]} 5. e3 {[%clk 0:02:54.3]}
5... O-O {[%clk 0:02:58.3]} 6. Bd3 {[%clk 0:02:54.4]} 6... c5 {[%clk 0:02:55.4]}
7. cxd5 {[%clk 0:02:40.3]} 7... cxd4 {[%clk 0:02:51.5]} 8. Nxd4 {[%clk 0:02:37]}
8... Nxd5 {[%clk 0:02:51.3]} 9. O-O {[%clk 0:02:35.3]} 9... Nxc3 {[%clk
0:02:50.7]} 10. bxc3 {[%clk 0:02:36.2]} 10... e5 {[%clk 0:02:45.3]} 11. Nf3
{[%clk 0:02:33.2]} 11... Nc6 {[%clk 0:02:44.2]} 12. e4 {[%clk 0:02:28]} 12...
Bg4 {[%clk 0:02:41.1]} 13. h3 {[%clk 0:02:24.9]} 13... Bxf3 {[%clk 0:02:28.5]}
14. Qxf3 {[%clk 0:02:25.8]} 14... Rc8 {[%clk 0:02:28.7]} 15. Rd1 {[%clk
0:02:18.5]} 15... Qa5 {[%clk 0:02:28]} 16. Bc4 {[%clk 0:02:07.9]} 16... Nd4
{[%clk 0:02:05.4]} 17. cxd4 {[%clk 0:02:04.2]} 17... Rxc4 {[%clk 0:02:05.1]} 18.
d5 {[%clk 0:02:03.1]} 18... f5 {[%clk 0:02:01.6]} 19. d6 {[%clk 0:01:53]} 19...
Qa4 {[%clk 0:01:42.1]} 20. Bg5 {[%clk 0:01:41.5]} 20... fxe4 {[%clk 0:01:39.1]}
21. Qb3 {[%clk 0:01:33.7]} 21... Qxb3 {[%clk 0:01:15.1]} 22. axb3 {[%clk
0:01:34.6]} 22... Rd4 {[%clk 0:01:15.4]} 23. Rxd4 {[%clk 0:01:25.7]} 23... exd4
{[%clk 0:01:14]} 24. d7 {[%clk 0:01:26.1]} 24... d3 {[%clk 0:01:12]} 25. Rd1
{[%clk 0:01:21.3]} 25... Kf7 {[%clk 0:01:07.9]} 26. d8=Q {[%clk 0:01:18.1]}
26... Rxd8 {[%clk 0:01:08]} 27. Bxd8 {[%clk 0:01:18.9]} 27... Ke6 {[%clk
0:01:08.9]} 28. Bg5 {[%clk 0:01:15.7]} 28... Kf5 {[%clk 0:01:08.7]} 29. Be3
{[%clk 0:01:15.5]} 29... a6 {[%clk 0:01:07.8]} 30. f3 {[%clk 0:01:14.4]} 30...
h5 {[%clk 0:01:06.3]} 31. g4+ {[%clk 0:01:13.7]} 31... hxg4 {[%clk 0:01:06.4]}
32. hxg4+ {[%clk 0:01:14.6]} 32... Ke5 {[%clk 0:01:07]} 33. Kf2 {[%clk
0:01:14.6]} 33... Bf6 {[%clk 0:01:04.7]} 34. fxe4 {[%clk 0:01:03.5]} 34... Kxe4
{[%clk 0:01:04.5]} 35. Re1 {[%clk 0:00:57.6]} 35... Bh4+ {[%clk 0:01:02.6]} 36.
Kg2 {[%clk 0:00:38.2]} 36... Bxe1 {[%clk 0:01:02.6]} 37. Bd2 {[%clk 0:00:37.7]}
37... Bxd2 {[%clk 0:01:02.5]} 0-1

[Event "*** Titled Tuesday Blitz"]
[Site "Chess.com"]
[Date "2020.04.28"]
[Round "7"]
[White "czasnaszachy"]
[Black "FMOlexandrProhorov"]
[Result "0-1"]
[WhiteElo "2292"]
[BlackElo "2096"]
[TimeControl "180+1"]
[EndTime "11:17:02 PDT"]
[Termination "FMOlexandrProhorov won by checkmate"]

1. d4 {[%clk 0:03:00.9]} 1... g6 {[%clk 0:02:59.3]} 2. c4 {[%clk 0:03:00.9]}
2... Bg7 {[%clk 0:02:59.6]} 3. Nc3 {[%clk 0:03:01.4]} 3... c5 {[%clk 0:02:59.9]}
4. d5 {[%clk 0:03:01.2]} 4... Bxc3+ {[%clk 0:03:00.2]} 5. bxc3 {[%clk
0:03:01.1]} 5... f5 {[%clk 0:03:01.1]} 6. e4 {[%clk 0:03:00.6]} 6... Qa5 {[%clk
0:03:01.7]} 7. Bd2 {[%clk 0:02:42.5]} 7... fxe4 {[%clk 0:03:00.1]} 8. f3 {[%clk
0:02:23.4]} 8... d6 {[%clk 0:02:59.5]} 9. fxe4 {[%clk 0:02:21.1]} 9... Nf6
{[%clk 0:03:00.1]} 10. Bd3 {[%clk 0:02:20.6]} 10... Nbd7 {[%clk 0:02:56]} 11.
Nf3 {[%clk 0:02:19.7]} 11... Nb6 {[%clk 0:02:54]} 12. O-O {[%clk 0:02:17.4]}
12... Bg4 {[%clk 0:02:51.9]} 13. Qe1 {[%clk 0:02:13.6]} 13... O-O-O {[%clk
0:02:48.9]} 14. Ng5 {[%clk 0:02:02.4]} 14... Rhf8 {[%clk 0:02:45.3]} 15. h3
{[%clk 0:01:51.1]} 15... Bd7 {[%clk 0:02:45.1]} 16. e5 {[%clk 0:01:49.8]} 16...
Nh5 {[%clk 0:02:24]} 17. e6 {[%clk 0:01:43.6]} 17... Ba4 {[%clk 0:02:17.6]} 18.
Nf7 {[%clk 0:01:34.7]} 18... Rde8 {[%clk 0:02:15.1]} 19. Bh6 {[%clk 0:01:23.7]}
19... Rg8 {[%clk 0:02:13.6]} 20. Bf4 {[%clk 0:01:00.2]} 20... Nxf4 {[%clk
0:02:12.2]} 21. Rxf4 {[%clk 0:00:59.7]} 21... Qa6 {[%clk 0:02:11.5]} 22. Qe2
{[%clk 0:00:57.4]} 22... Kc7 {[%clk 0:02:05.9]} 23. Raf1 {[%clk 0:00:48.2]}
23... Nc8 {[%clk 0:02:04.8]} 24. Ng5 {[%clk 0:00:45.5]} 24... h6 {[%clk
0:01:58.4]} 25. Ne4 {[%clk 0:00:37.3]} 25... g5 {[%clk 0:01:58.7]} 26. Rf7
{[%clk 0:00:36.6]} 26... Qa5 {[%clk 0:01:55.6]} 27. Nf6 {[%clk 0:00:33.5]} 27...
a6 {[%clk 0:01:52]} 28. Nxe8+ {[%clk 0:00:26.3]} 28... Rxe8 {[%clk 0:01:50.5]}
29. Rh7 {[%clk 0:00:25.7]} 29... Qxc3 {[%clk 0:01:46.8]} 30. Rxh6 {[%clk
0:00:25.2]} 30... Qd4+ {[%clk 0:01:46.4]} 31. Kh1 {[%clk 0:00:24.4]} 31... b5
{[%clk 0:01:45.8]} 32. cxb5 {[%clk 0:00:23.9]} 32... Qxd5 {[%clk 0:01:40.7]} 33.
bxa6 {[%clk 0:00:20.8]} 33... Bc6 {[%clk 0:01:39.6]} 34. Rg6 {[%clk 0:00:19.1]}
34... Rh8 {[%clk 0:01:37.5]} 35. Kh2 {[%clk 0:00:13.1]} 35... Nb6 {[%clk
0:01:32.7]} 36. Qe3 {[%clk 0:00:06.6]} 36... Qxg2# {[%clk 0:01:31.7]} 0-1

[Event "*** Titled Tuesday Blitz"]
[Site "Chess.com"]
[Date "2020.04.28"]
[Round "7"]
[White "ErikRonka"]
[Black "IMUffeVinther-Schou"]
[Result "1-0"]
[WhiteElo "2416"]
[BlackElo "2264"]
[TimeControl "180+1"]
[EndTime "11:17:03 PDT"]
[Termination "ErikRonka won by checkmate"]

1. e4 {[%clk 0:03:00.9]} 1... c5 {[%clk 0:02:59.2]} 2. Nf3 {[%clk 0:03:00.2]}
2... e6 {[%clk 0:02:58.8]} 3. d4 {[%clk 0:03:00.2]} 3... cxd4 {[%clk 0:02:59.2]}
4. Nxd4 {[%clk 0:03:01.1]} 4... a6 {[%clk 0:02:59.3]} 5. Nc3 {[%clk 0:03:01.6]}
5... b5 {[%clk 0:02:58.6]} 6. Bd3 {[%clk 0:02:59.5]} 6... Qb6 {[%clk 0:02:57.5]}
7. Nf3 {[%clk 0:02:55.2]} 7... Bb7 {[%clk 0:02:45]} 8. O-O {[%clk 0:02:53.9]}
8... d6 {[%clk 0:02:30]} 9. a4 {[%clk 0:02:53.4]} 9... b4 {[%clk 0:02:27.3]} 10.
a5 {[%clk 0:02:53.5]} 10... Qc7 {[%clk 0:02:25.5]} 11. Na4 {[%clk 0:02:51.8]}
11... Nd7 {[%clk 0:02:22.6]} 12. Be3 {[%clk 0:02:46]} 12... Ngf6 {[%clk
0:02:20.4]} 13. Nb6 {[%clk 0:02:42.4]} 13... Rd8 {[%clk 0:02:07.5]} 14. Nxd7
{[%clk 0:02:32.8]} 14... Rxd7 {[%clk 0:02:06.2]} 15. Bb6 {[%clk 0:02:29.5]}
15... Qb8 {[%clk 0:02:01.1]} 16. Re1 {[%clk 0:02:21.9]} 16... Be7 {[%clk
0:01:52.3]} 17. Qe2 {[%clk 0:01:57.3]} 17... Qa8 {[%clk 0:01:42.2]} 18. e5
{[%clk 0:01:52]} 18... Nd5 {[%clk 0:01:33.9]} 19. exd6 {[%clk 0:01:44.5]} 19...
Bxd6 {[%clk 0:01:30.2]} 20. Ne5 {[%clk 0:01:43.7]} 20... Nf4 {[%clk 0:01:18.3]}
21. Qg4 {[%clk 0:01:39.5]} 21... Bxe5 {[%clk 0:00:49.2]} 22. Rxe5 {[%clk
0:01:38.5]} 22... Nxd3 {[%clk 0:00:31.6]} 23. Qxg7 {[%clk 0:01:37.6]} 23... Ke7
{[%clk 0:00:23.6]} 24. cxd3 {[%clk 0:01:28.6]} 24... Rg8 {[%clk 0:00:22.2]} 25.
Bc5+ {[%clk 0:01:28.1]} 25... Rd6 {[%clk 0:00:19.6]} 26. Rxe6+ {[%clk
0:01:17.4]} 26... Kxe6 {[%clk 0:00:17.6]} 27. Re1+ {[%clk 0:01:17]} 27... Kd5
{[%clk 0:00:15.7]} 28. Qd4+ {[%clk 0:01:15.8]} 28... Kc6 {[%clk 0:00:15.1]} 29.
Qxd6+ {[%clk 0:01:15.4]} 29... Kb5 {[%clk 0:00:14.9]} 30. Qb6+ {[%clk
0:01:10.5]} 30... Ka4 {[%clk 0:00:14.6]} 31. Qxb4# {[%clk 0:01:11]} 1-0

[Event "*** Titled Tuesday Blitz"]
[Site "Chess.com"]
[Date "2020.04.28"]
[Round "7"]
[White "Maghalashvili"]
[Black "JiaHaoxiang"]
[Result "1-0"]
[WhiteElo "2790"]
[BlackElo "2577"]
[TimeControl "180+1"]
[EndTime "11:17:04 PDT"]
[Termination "Maghalashvili won by resignation"]

1. Nf3 {[%clk 0:03:00.9]} 1... c5 {[%clk 0:02:32]} 2. c4 {[%clk 0:02:59.9]} 2...
b6 {[%clk 0:02:31.8]} 3. g3 {[%clk 0:03:00.1]} 3... Bb7 {[%clk 0:02:32.1]} 4.
Bg2 {[%clk 0:03:01]} 4... Nf6 {[%clk 0:02:32.4]} 5. O-O {[%clk 0:03:00.7]} 5...
e6 {[%clk 0:02:33.1]} 6. Nc3 {[%clk 0:03:00.7]} 6... Be7 {[%clk 0:02:33.4]} 7.
d4 {[%clk 0:03:01.1]} 7... cxd4 {[%clk 0:02:33.3]} 8. Qxd4 {[%clk 0:03:01.8]}
8... d6 {[%clk 0:02:32.5]} 9. Bg5 {[%clk 0:03:01]} 9... Nbd7 {[%clk 0:02:32.2]}
10. Nb5 {[%clk 0:02:55.9]} 10... Nc5 {[%clk 0:02:24.6]} 11. Bxf6 {[%clk
0:02:50.2]} 11... gxf6 {[%clk 0:02:22.9]} 12. Rfd1 {[%clk 0:02:46.8]} 12... Ne4
{[%clk 0:01:43.2]} 13. Nd2 {[%clk 0:02:34.1]} 13... e5 {[%clk 0:01:42.9]} 14.
Qe3 {[%clk 0:02:27.2]} 14... Nc5 {[%clk 0:01:42.1]} 15. Bxb7 {[%clk 0:02:24.8]}
15... Nxb7 {[%clk 0:01:42]} 16. Qf3 {[%clk 0:02:21.4]} 16... Qd7 {[%clk
0:01:39]} 17. Ne4 {[%clk 0:02:11.4]} 17... Rd8 {[%clk 0:01:27.9]} 18. Nxf6+
{[%clk 0:02:06]} 18... Bxf6 {[%clk 0:01:28.2]} 19. Qxf6 {[%clk 0:02:06.2]} 19...
Rg8 {[%clk 0:01:27.8]} 20. Rd5 {[%clk 0:01:41.2]} 20... Rg6 {[%clk 0:01:26.1]}
21. Qh8+ {[%clk 0:01:31.8]} 21... Ke7 {[%clk 0:01:26.4]} 22. Qxh7 {[%clk
0:01:31.6]} 22... a6 {[%clk 0:01:24.4]} 23. Nc3 {[%clk 0:01:31.1]} 23... Nc5
{[%clk 0:01:24.6]} 24. Rad1 {[%clk 0:01:30.1]} 24... Qf5 {[%clk 0:01:18.8]} 25.
Qh4+ {[%clk 0:01:25.4]} 25... f6 {[%clk 0:01:11.7]} 26. b4 {[%clk 0:01:22.8]}
26... Ne6 {[%clk 0:01:09.2]} 27. Qe4 {[%clk 0:01:00.7]} 27... Qh5 {[%clk
0:00:37.7]} 28. Rxd6 {[%clk 0:01:00.7]} 28... Rh6 {[%clk 0:00:30.6]} 29. Qb7+
{[%clk 0:00:57]} 29... Ke8 {[%clk 0:00:28.3]} 30. Rxe6+ {[%clk 0:00:56.8]} 1-0

[Event "*** Titled Tuesday Blitz"]
[Site "Chess.com"]
[Date "2020.04.28"]
[Round "7"]
[White "Milchone1"]
[Black "TheCount"]
[Result "1-0"]
[WhiteElo "2510"]
[BlackElo "2615"]
[TimeControl "180+1"]
[EndTime "11:17:08 PDT"]
[Termination "Milchone1 won by resignation"]

1. Nf3 {[%clk 0:03:00.9]} 1... Nf6 {[%clk 0:03:00.3]} 2. c4 {[%clk 0:03:01.3]}
2... g6 {[%clk 0:03:00.3]} 3. Nc3 {[%clk 0:03:01.3]} 3... d5 {[%clk 0:03:00.9]}
4. Qa4+ {[%clk 0:03:00.8]} 4... Bd7 {[%clk 0:02:54]} 5. Qb3 {[%clk 0:03:00.3]}
5... dxc4 {[%clk 0:02:53.9]} 6. Qxc4 {[%clk 0:03:01.2]} 6... Bg7 {[%clk
0:02:50.4]} 7. Ne5 {[%clk 0:02:57.8]} 7... Be6 {[%clk 0:02:46.3]} 8. Qb5+ {[%clk
0:02:57.6]} 8... Nbd7 {[%clk 0:02:44.9]} 9. Nxd7 {[%clk 0:02:57.3]} 9... Qxd7
{[%clk 0:02:43.6]} 10. Qxb7 {[%clk 0:02:56.8]} 10... O-O {[%clk 0:02:44]} 11. e3
{[%clk 0:02:54.7]} 11... Nd5 {[%clk 0:02:36.6]} 12. Bb5 {[%clk 0:02:51]} 12...
Qd6 {[%clk 0:02:30.4]} 13. a3 {[%clk 0:02:50]} 13... Nxc3 {[%clk 0:02:24.7]} 14.
bxc3 {[%clk 0:02:46.4]} 14... Bd5 {[%clk 0:02:25]} 15. Qa6 {[%clk 0:02:46.8]}
15... Bxg2 {[%clk 0:02:23.4]} 16. Qxd6 {[%clk 0:02:46.4]} 16... cxd6 {[%clk
0:02:23.3]} 17. Rg1 {[%clk 0:02:46.9]} 17... Rab8 {[%clk 0:02:18.8]} 18. a4
{[%clk 0:02:44.1]} 18... Be4 {[%clk 0:02:16.5]} 19. d4 {[%clk 0:02:43.2]} 19...
Rfc8 {[%clk 0:02:15.2]} 20. Bd2 {[%clk 0:02:42.6]} 20... Bc6 {[%clk 0:02:09]}
21. Ke2 {[%clk 0:02:33.5]} 21... Bxb5+ {[%clk 0:01:54.8]} 22. axb5 {[%clk
0:02:34.4]} 22... Rxb5 {[%clk 0:01:54.8]} 23. Rxa7 {[%clk 0:02:33.9]} 23... Bf6
{[%clk 0:01:55.3]} 24. Rga1 {[%clk 0:02:22.8]} 24... Kg7 {[%clk 0:01:51.4]} 25.
R1a2 {[%clk 0:02:22]} 25... Rh5 {[%clk 0:01:50.7]} 26. Ra8 {[%clk 0:02:15.6]}
26... Rxa8 {[%clk 0:01:50]} 27. Rxa8 {[%clk 0:02:16.5]} 27... Rxh2 {[%clk
0:01:50.3]} 28. c4 {[%clk 0:02:15.5]} 28... Rh5 {[%clk 0:01:43]} 29. f4 {[%clk
0:02:14.1]} 29... Rh2+ {[%clk 0:01:41.2]} 30. Kd3 {[%clk 0:02:13.5]} 30... Rh5
{[%clk 0:01:12.8]} 31. Bb4 {[%clk 0:02:12.6]} 31... g5 {[%clk 0:01:04.4]} 32.
fxg5 {[%clk 0:02:07.7]} 32... Rxg5 {[%clk 0:01:03.9]} 33. c5 {[%clk 0:02:07.7]}
33... dxc5 {[%clk 0:01:04.4]} 34. dxc5 {[%clk 0:02:07.3]} 34... Rg1 {[%clk
0:00:47.9]} 35. Kc2 {[%clk 0:01:56.3]} 35... Rg2+ {[%clk 0:00:47.4]} 36. Kd3
{[%clk 0:01:56]} 36... Rg1 {[%clk 0:00:47.3]} 37. Kc2 {[%clk 0:01:55.7]} 37...
h5 {[%clk 0:00:44.5]} 38. c6 {[%clk 0:01:55.2]} 38... Be5 {[%clk 0:00:44.2]} 39.
Ra5 {[%clk 0:01:51.2]} 39... Rg2+ {[%clk 0:00:32.3]} 40. Kd3 {[%clk 0:01:49.8]}
40... Bc7 {[%clk 0:00:29.6]} 41. Ra7 {[%clk 0:01:44.9]} 41... Bb6 {[%clk
0:00:12.6]} 42. Rb7 {[%clk 0:01:42]} 42... Bxe3 {[%clk 0:00:08.8]} 43. c7 {[%clk
0:01:36.7]} 1-0

[Event "*** Titled Tuesday Blitz"]
[Site "Chess.com"]
[Date "2020.04.28"]
[Round "7"]
[White "The_Machine04"]
[Black "pooh2012"]
[Result "0-1"]
[WhiteElo "2284"]
[BlackElo "2496"]
[TimeControl "180+1"]
[EndTime "11:17:08 PDT"]
[Termination "pooh2012 won by resignation"]

1. d4 {[%clk 0:03:00.9]} 1... d6 {[%clk 0:03:00.9]} 2. Bf4 {[%clk 0:03:00.5]}
2... Nd7 {[%clk 0:03:01.6]} 3. Nf3 {[%clk 0:02:59.5]} 3... c6 {[%clk 0:03:02.1]}
4. e4 {[%clk 0:02:58.9]} 4... Qc7 {[%clk 0:03:02.7]} 5. c3 {[%clk 0:02:52.6]}
5... e5 {[%clk 0:03:02.9]} 6. dxe5 {[%clk 0:02:52.9]} 6... dxe5 {[%clk
0:03:03.8]} 7. Bc1 {[%clk 0:02:51.9]} 7... Ngf6 {[%clk 0:03:04]} 8. Nbd2 {[%clk
0:02:52]} 8... Bc5 {[%clk 0:03:02.2]} 9. Bc4 {[%clk 0:02:51.2]} 9... O-O {[%clk
0:03:00.7]} 10. O-O {[%clk 0:02:51.1]} 10... a5 {[%clk 0:03:01.3]} 11. a4 {[%clk
0:02:50.5]} 11... h6 {[%clk 0:02:55.5]} 12. Qe2 {[%clk 0:02:40.3]} 12... Re8
{[%clk 0:02:39.7]} 13. Rd1 {[%clk 0:02:38.9]} 13... Nf8 {[%clk 0:02:35.7]} 14.
h3 {[%clk 0:02:36]} 14... Be6 {[%clk 0:02:35.6]} 15. b3 {[%clk 0:02:31]} 15...
Ng6 {[%clk 0:02:33.1]} 16. Bxe6 {[%clk 0:02:29.3]} 16... Rxe6 {[%clk 0:02:34]}
17. Nf1 {[%clk 0:02:27.3]} 17... Rd8 {[%clk 0:02:31.5]} 18. Rxd8+ {[%clk
0:02:24.5]} 18... Qxd8 {[%clk 0:02:32.4]} 19. Ng3 {[%clk 0:02:21.9]} 19... Rd6
{[%clk 0:02:29.2]} 20. Nf5 {[%clk 0:02:12.6]} 20... Rd1+ {[%clk 0:02:28.6]} 21.
Kh2 {[%clk 0:02:07.7]} 21... Qd3 {[%clk 0:02:13.5]} 22. Qxd3 {[%clk 0:01:42.7]}
22... Rxd3 {[%clk 0:02:14.4]} 23. Ng3 {[%clk 0:01:40.1]} 23... Bxf2 {[%clk
0:02:09.3]} 24. Bb2 {[%clk 0:01:35.2]} 24... Bxg3+ {[%clk 0:02:01.9]} 25. Kxg3
{[%clk 0:01:36.1]} 25... Nxe4+ {[%clk 0:02:02.2]} 26. Kh2 {[%clk 0:01:36.7]}
26... Nxc3 {[%clk 0:01:20.3]} 27. Re1 {[%clk 0:01:32.2]} 27... f6 {[%clk
0:01:07.9]} 28. Bxc3 {[%clk 0:01:13.5]} 28... Rxc3 {[%clk 0:01:07.1]} 29. Nd2
{[%clk 0:01:14.4]} 29... Rd3 {[%clk 0:01:02.5]} 30. Re2 {[%clk 0:01:13.2]} 30...
Nf4 {[%clk 0:01:01.9]} 31. Rf2 {[%clk 0:01:13.2]} 31... b5 {[%clk 0:00:58.5]}
32. axb5 {[%clk 0:01:11.5]} 32... cxb5 {[%clk 0:00:59.4]} 33. g3 {[%clk
0:01:10.6]} 33... Ne6 {[%clk 0:00:57.4]} 34. b4 {[%clk 0:01:08.7]} 34... axb4
{[%clk 0:00:52.2]} 35. Ne4 {[%clk 0:01:07.8]} 35... b3 {[%clk 0:00:49.1]} 36.
Rb2 {[%clk 0:01:07.2]} 36... f5 {[%clk 0:00:47.1]} 37. Nd2 {[%clk 0:00:58.6]}
37... Nd4 {[%clk 0:00:44.9]} 38. Kg2 {[%clk 0:00:57.3]} 38... Rc3 {[%clk
0:00:44.6]} 39. Kf2 {[%clk 0:00:52.4]} 39... Rc2 {[%clk 0:00:43.4]} 0-1